fUST/lending_fUST_20250811
["ID","MTS","AMOUNT","RATE_DAILY","PERIOD"]
[378557973,1754913051879,-460.0,0.00019945,2]
[378557975,1754913051888,-460.0,0.00019945,2]
[378557977,1754913051898,-460.0,0.00019945,2]
[378557979,1754913051907,-460.0,0.00019945,2]
[378557981,1754913051916,-460.0,0.00019945,2]
[378557983,1754913051925,-460.0,0.00019945,2]
[378557985,1754913051934,-460.0,0.00019945,2]
[378557987,1754913051943,-542.55,0.00019945,2]
[378557989,1754913051952,-460.0,0.00019945,2]
[378557990,1754913051961,-460.0,0.00019945,2]
[378557992,1754913051970,-460.0,0.00019945,2]
[378557994,1754913051979,-460.0,0.00019945,2]
[378557996,1754913051988,-460.0,0.00019945,2]
[378557998,1754913051997,-460.0,0.00019945,2]
[378558000,1754913052007,-460.0,0.00019945,2]
[378558002,1754913052016,-460.0,0.00019945,2]
[378558004,1754913052025,-1422.1,0.00019945,2]
[378558006,1754913052035,-460.0,0.00019945,2]
[378558008,1754913052044,-460.0,0.00019945,2]
[378558010,1754913052053,-460.0,0.00019945,2]
[378558012,1754913052062,-460.0,0.00019945,2]
[378558014,1754913052072,-460.0,0.00019945,2]
[378558016,1754913052081,-460.0,0.00019945,2]
[378558018,1754913052090,-460.0,0.00019945,2]
[378558019,1754913052100,-460.0,0.00019945,2]
[378558021,1754913052109,-460.0,0.00019945,2]
[378558023,1754913052118,-460.0,0.00019945,2]
[378558025,1754913052127,-460.0,0.00019945,2]
[378558027,1754913052136,-669.0,0.00019945,2]
[378558029,1754913052145,-601.64,0.00019945,2]
[378558031,1754913052155,-460.0,0.00019945,2]
[378558033,1754913052164,-460.0,0.00019945,2]
[378558035,1754913052173,-367.42345262,0.00019945,2]
[378558037,1754913052182,-687.98,0.00019945,2]
[378558039,1754913052192,-654.34,0.00019945,2]
[378558041,1754913052201,-725.6,0.00019945,2]
[378558043,1754913052211,-461.41050636,0.00019945,2]
[378558045,1754913052221,-460.0,0.00019945,2]
[378558047,1754913052231,-450.98435071,0.00019945,2]
[378558049,1754913052240,-460.0,0.00019945,2]
[378558050,1754913052250,-460.0,0.00019945,2]
[378558052,1754913052259,-460.0,0.00019945,2]
[378558054,1754913052269,-651.11,0.00019945,2]
[378558056,1754913052278,-460.0,0.00019945,2]
[378558058,1754913052287,-460.0,0.00019945,2]
[378558060,1754913052296,-430.29479123,0.00019945,2]
[378558062,1754913052307,-460.0,0.00019945,2]
[378558064,1754913052316,-460.0,0.00019945,2]
[378558066,1754913052325,-460.0,0.00019945,2]
[378558068,1754913052334,-460.0,0.00019945,2]
[378558070,1754913052343,-1449.28,0.00019945,2]
[378558072,1754913052352,-460.0,0.00019945,2]
[378558073,1754913052360,-460.0,0.00019945,2]
[378558074,1754913052369,-460.0,0.00019945,2]
[378558075,1754913052378,-525.82139197,0.00019945,2]
[378558076,1754913052387,-1136.5,0.00019945,2]
[378558077,1754913052396,-460.0,0.00019945,2]
[378558078,1754913052405,-150.67266954,0.00019945,2]
[378558079,1754913052414,-832.01,0.00019945,2]
[378558080,1754913052423,-460.0,0.00019945,2]
[378558081,1754913052432,-852.44,0.00019945,2]
[378558082,1754913052441,-460.0,0.00019945,2]
[378558083,1754913052450,-460.0,0.00019945,2]
[378558084,1754913052459,-460.0,0.00019945,2]
[378558085,1754913052468,-460.0,0.00019945,2]
[378558086,1754913052477,-460.0,0.00019945,2]
[378558087,1754913052486,-460.0,0.00019945,2]
[378558088,1754913052495,-460.0,0.00019945,2]
[378558089,1754913052504,-460.0,0.00019945,2]
[378558090,1754913052513,-460.0,0.00019945,2]
[378558091,1754913052523,-460.0,0.00019945,2]
[378558092,1754913052532,-460.0,0.00019945,2]
[378558093,1754913052541,-460.0,0.00019945,2]
[378558094,1754913052550,-547.38716305,0.00019945,2]
[378558095,1754913052559,-460.0,0.00019945,2]
[378558096,1754913052568,-460.0,0.00019945,2]
[378558097,1754913052579,-460.0,0.00019945,2]
[378558098,1754913052588,-460.0,0.00019945,2]
[378558099,1754913052597,-460.0,0.00019945,2]
[378558100,1754913052606,-460.0,0.00019945,2]
[378558101,1754913052616,-460.0,0.00019945,2]
[378558102,1754913052625,-691.51,0.00019945,2]
[378558103,1754913052634,-1544.02,0.00019945,2]
[378558104,1754913052643,-460.0,0.00019945,2]
[378558105,1754913052652,-725.28,0.00019945,2]
[378558106,1754913052661,-460.0,0.00019945,2]
[378558107,1754913052670,-460.0,0.00019945,2]
[378558108,1754913052679,-460.0,0.00019945,2]
[378558109,1754913052687,-460.0,0.00019945,2]
[378558110,1754913052697,-460.0,0.00019945,2]
[378558111,1754913052706,-460.0,0.00019945,2]
[378558112,1754913052714,-460.0,0.00019945,2]
[378558113,1754913052723,-460.0,0.00019945,2]
[378558114,1754913052732,-460.0,0.00019945,2]
[378558115,1754913052741,-460.0,0.00019945,2]
[378558116,1754913052751,-710.7,0.00019945,2]
[378558117,1754913052769,-460.0,0.00019945,2]
[378558118,1754913052780,-460.0,0.00019945,2]
[378558119,1754913052789,-460.43440841,0.00019945,2]
[378558120,1754913052798,-460.0,0.00019945,2]
[378558121,1754913052807,-460.0,0.00019945,2]
[378558122,1754913052815,-460.0,0.00019945,2]
[378558123,1754913052824,-937.22,0.00019945,2]
[378558124,1754913052833,-460.0,0.00019945,2]
[378558125,1754913052842,-859.64,0.00019945,2]
[378558126,1754913052851,-460.0,0.00019945,2]
[378558127,1754913052860,-460.0,0.00019945,2]
[378558128,1754913052869,-460.0,0.00019945,2]
[378558129,1754913052878,-723.46,0.00019945,2]
[378558130,1754913052887,-460.0,0.00019945,2]
[378558131,1754913052896,-481.48,0.00019945,2]
[378558132,1754913052905,-460.0,0.00019945,2]
[378558133,1754913052914,-460.0,0.00019945,2]
[378558134,1754913052923,-204.81045181,0.00019945,2]
[378558135,1754913052932,-460.0,0.00019945,2]
[378558136,1754913052941,-460.0,0.00019945,2]
[378558137,1754913052949,-460.0,0.00019945,2]
[378558138,1754913052958,-462.67555368,0.00019945,2]
[378558139,1754913052967,-460.0,0.00019945,2]
[378558140,1754913052975,-460.0,0.00019945,2]
[378558141,1754913052984,-469.53478487,0.00019945,2]
[378558142,1754913052993,-467.98867287,0.00019945,2]
[378558143,1754913053002,-460.0,0.00019945,2]
[378558144,1754913053010,-460.0,0.00019945,2]
[378558145,1754913053019,-460.0,0.00019945,2]
[378558146,1754913053029,-461.78873396,0.00019945,2]
[378558147,1754913053037,-460.0,0.00019945,2]
[378558148,1754913053046,-460.0,0.00019945,2]
[378558149,1754913053055,-460.0,0.00019945,2]
[378558150,1754913053065,-460.0,0.00019945,2]
[378558151,1754913053076,-460.0,0.00019945,2]
[378558152,1754913053085,-409.0592012,0.00019945,2]
[378558153,1754913053095,-460.0,0.00019945,2]
[378558154,1754913053103,-460.0,0.00019945,2]
[378558155,1754913053112,-460.0,0.00019945,2]
[378558156,1754913053122,-460.0,0.00019945,2]
[378558157,1754913053132,-921.33,0.00019945,2]
[378558158,1754913053142,-460.0,0.00019945,2]
[378558159,1754913053151,-816.07,0.00019945,2]
[378558160,1754913053160,-460.0,0.00019945,2]
[378558161,1754913053170,-460.0,0.00019945,2]
[378558162,1754913053179,-460.0,0.00019945,2]
[378558163,1754913053188,-259.69816,0.00019945,2]
[378558164,1754913053197,-151.0,0.00019945,2]
[378558165,1754913053207,-460.0,0.00019945,2]
[378558166,1754913053217,-259.69816,0.00019945,2]
[378558167,1754913053227,-460.0,0.00019945,2]
[378558168,1754913053238,-1011.79193332,0.00019945,2]
[378558169,1754913053248,-460.0,0.00019945,2]
[378558170,1754913053258,-460.0,0.00019945,2]
[378558171,1754913053268,-460.0,0.00019945,2]
[378558172,1754913053278,-460.0,0.00019945,2]
[378558173,1754913053289,-460.0,0.00019945,2]
[378558174,1754913053298,-460.0,0.00019945,2]
[378558175,1754913053309,-200.0,0.0001995,15]
[378558176,1754913053318,-200.0,0.0001995,15]
[378558177,1754913053333,-200.0,0.0001995,15]
[378558178,1754913053343,-500.0,0.00019973,2]
[378558179,1754913053353,-500.0,0.00019973,2]
[378558180,1754913053362,-500.0,0.00019973,2]
[378558181,1754913053371,-500.0,0.00019973,2]
[378558182,1754913053380,-505.589476,0.00019973,2]
[378558183,1754913053389,-500.0,0.00019973,2]
[378558184,1754913053399,-500.0,0.00019973,2]
[378558185,1754913053409,-500.0,0.00019973,2]
[378558186,1754913053418,-500.0,0.00019973,2]
[378558187,1754913053427,-157.96167722,0.00019973,2]
[378558188,1754913053437,-158.04855828,0.00019973,2]
[378558189,1754913053446,-500.0,0.00019973,2]
[378558190,1754913053455,-500.0,0.00019973,2]
[378558191,1754913053465,-158.04855828,0.00019973,2]
[378558192,1754913053474,-160.06638324,0.00019973,2]
[378558193,1754913053484,-160.17133691,0.00019973,2]
[378558194,1754913053493,-500.0,0.00019973,2]
[378558195,1754913053503,-158.4649633,0.00019973,2]
[378558196,1754913053512,-160.06669641,0.00019973,2]
[378558197,1754913053522,-158.46621791,0.00019973,2]
[378558198,1754913053532,-258.42704119,0.00019973,2]
[378558199,1754913053542,-500.0,0.00019973,2]
[378558201,1754913053552,-500.0,0.00019973,2]
[378558203,1754913053562,-265.19871194,0.00019973,2]
[378558205,1754913053572,-500.0,0.00019973,2]
[378558207,1754913053584,-500.45311942,0.00019973,2]
[378558209,1754913053593,-340.52011149,0.00019973,2]
[378558211,1754913053603,-500.0,0.00019973,2]
[378558213,1754913053613,-500.0,0.00019973,2]
[378558215,1754913053623,-500.0,0.00019973,2]
[378558217,1754913053633,-500.0,0.00019973,2]
[378558219,1754913053643,-500.0,0.00019973,2]
[378558221,1754913053652,-500.0,0.00019973,2]
[378558223,1754913053662,-500.0,0.00019973,2]
[378558225,1754913053671,-500.0,0.00019973,2]
[378558227,1754913053680,-500.0,0.00019973,2]
[378558229,1754913053690,-500.0,0.00019973,2]
[378558231,1754913053700,-500.0,0.00019973,2]
[378558233,1754913053710,-500.0,0.00019973,2]
[378558235,1754913053719,-500.0,0.00019973,2]
[378558237,1754913053728,-500.0,0.00019973,2]
[378558239,1754913053738,-500.0,0.00019973,2]
[378558241,1754913053747,-500.0,0.00019973,2]
[378558243,1754913053757,-500.0,0.00019973,2]
[378558245,1754913053767,-500.0,0.00019973,2]
[378558247,1754913053777,-554.74712268,0.00019973,2]
[378558249,1754913053787,-448.81982586,0.00019973,2]
[378558251,1754913053796,-500.0,0.00019973,2]
[378558253,1754913053806,-500.0,0.00019973,2]
[378558255,1754913053816,-500.0,0.00019973,2]
[378558257,1754913053828,-151.0,0.0001999,2]
[378558259,1754913053838,-151.0,0.0001999,2]
[378558261,1754913053848,-151.0,0.0001999,2]
[378558263,1754913053858,-1880.417424,0.0001999,2]
[378558265,1754913053868,-1880.417424,0.0001999,2]
[378558267,1754913053878,-152.310469,0.0001999,2]
[378558269,1754913053888,-56158.34999858,0.0001999,2]
[378558434,1754913055482,-460.0,0.00019568,2]
[378558437,1754913055492,-460.0,0.00019671,2]
[378558439,1754913055502,-1389.85,0.00019943,2]
[378558441,1754913055511,-460.0,0.00019945,2]
[378558443,1754913055520,-43841.65000142,0.0001999,2]
[378558445,1754913055530,-151.0,0.0002,4]
[378558447,1754913055539,-151.0,0.0002,2]
[378558449,1754913055548,-4000.0,0.0002,4]
[378558451,1754913055557,-460.0,0.00020013,2]
[378558453,1754913055566,-1312.68,0.00020013,2]
[378558455,1754913055577,-442.65056221,0.00020027,2]
[378558457,1754913055586,-384.0,0.00020031,2]
[378558459,1754913055596,-460.0,0.00020044,2]
[378558461,1754913055605,-460.0,0.00020044,2]
[378558463,1754913055614,-460.0,0.00020044,2]
[378558465,1754913055623,-603.5,0.00020044,2]
[378558467,1754913055632,-460.0,0.00020044,2]
[378558469,1754913055641,-173.0,0.0002011,3]
[378558471,1754913055650,-198.44932677,0.00020115,2]
[378558473,1754913055659,-460.0,0.00020115,2]
[378558475,1754913055669,-460.0,0.00020115,2]
[378558477,1754913055678,-622.67,0.00020115,2]
[378558479,1754913055687,-460.0,0.00020115,2]
[378558481,1754913055696,-460.0,0.00020115,2]
[378558483,1754913055705,-460.0,0.00020115,2]
[378558485,1754913055715,-460.0,0.00020115,2]
[378558487,1754913055724,-460.0,0.00020115,2]
[378558489,1754913055733,-574.97,0.00020115,2]
[378558491,1754913055742,-734.28,0.00020116,2]
[378558493,1754913055752,-460.0,0.00020116,2]
[378558495,1754913055761,-460.0,0.00020116,2]
[378558497,1754913055770,-478.30018914,0.00020116,2]
[378558499,1754913055780,-460.0,0.00020116,2]
[378558501,1754913055789,-475.18,0.00020116,2]
[378558503,1754913055798,-460.0,0.00020116,2]
[378558504,1754913055806,-472.75538025,0.00020116,2]
[378558506,1754913055816,-460.0,0.00020116,2]
[378558508,1754913055826,-13.15445619,0.00020116,2]
[378558509,1754913055837,-446.84554381,0.00020116,2]
[378558511,1754913055847,-460.0,0.00020116,2]
[378558513,1754913055856,-463.87,0.00020116,2]
[378558514,1754913055865,-577.93704171,0.00020116,2]
[378558516,1754913055875,-460.0,0.00020116,2]
[378558517,1754913055884,-1214.66,0.00020116,2]
[378558519,1754913055897,-460.0,0.00020116,2]
[378558521,1754913055907,-460.0,0.00020116,2]
[378558523,1754913055917,-460.0,0.00020116,2]
[378558524,1754913055926,-460.0,0.00020116,2]
[378558526,1754913055936,-758.66,0.00020116,2]
[378558528,1754913055946,-460.0,0.00020116,2]
[378558529,1754913055956,-460.0,0.00020116,2]
[378558531,1754913055965,-460.0,0.00020116,2]
[378558533,1754913055975,-460.0,0.00020116,2]
[378558534,1754913055985,-460.0,0.00020116,2]
[378558536,1754913055994,-699.14,0.00020116,2]
[378558538,1754913056004,-3549.71,0.00020116,2]
[378558539,1754913056017,-460.0,0.00020116,2]
[378558541,1754913056026,-460.0,0.00020116,2]
[378558543,1754913056036,-460.0,0.00020116,2]
[378558544,1754913056047,-460.0,0.00020116,2]
[378558546,1754913056057,-555.85,0.00020116,2]
[378558547,1754913056067,-653.93,0.00020116,2]
[378558549,1754913056079,-460.0,0.00020116,2]
[378558551,1754913056089,-460.0,0.00020116,2]
[378558553,1754913056099,-513.31,0.00020116,2]
[378558568,1754913056316,-460.0,0.00020116,2]
[378558570,1754913056328,-3436.82,0.00020116,2]
[378558572,1754913056338,-5474.64,0.00020116,2]
[378558573,1754913056348,-460.0,0.00020116,2]
[378558575,1754913056358,-460.0,0.00020116,2]
[378558577,1754913056368,-460.0,0.00020116,2]
[378558578,1754913056378,-460.0,0.00020116,2]
[378558580,1754913056388,-1246.49,0.00020116,2]
[378558582,1754913056398,-460.0,0.00020116,2]
[378558583,1754913056407,-532.86,0.00020116,2]
[378558585,1754913056417,-460.0,0.00020116,2]
[378558587,1754913056427,-787.17,0.00020116,2]
[378558589,1754913056436,-460.0,0.00020116,2]
[378558590,1754913056446,-460.0,0.00020116,2]
[378558592,1754913056456,-460.0,0.00020116,2]
[378558594,1754913056465,-460.0,0.00020116,2]
[378558595,1754913056474,-1041.68,0.00020116,2]
[378558597,1754913056484,-460.0,0.00020116,2]
[378558599,1754913056494,-460.0,0.00020116,2]
[378558600,1754913056505,-460.0,0.00020116,2]
[378558602,1754913056515,-460.0,0.00020116,2]
[378558604,1754913056524,-460.0,0.00020116,2]
[378558605,1754913056534,-460.66,0.00020116,2]
[378558607,1754913056543,-460.0,0.00020116,2]
[378558609,1754913056552,-460.0,0.00020116,2]
[378558610,1754913056562,-460.0,0.00020116,2]
[378558612,1754913056572,-460.0,0.00020116,2]
[378558614,1754913056581,-460.0,0.00020116,2]
[378558616,1754913056591,-460.0,0.00020116,2]
[378558617,1754913056600,-460.0,0.00020117,2]
[378558619,1754913056609,-460.0,0.00020117,2]
[378558621,1754913056618,-535.89,0.00020117,2]
[378558622,1754913056628,-630.86,0.00020117,2]
[378558624,1754913056638,-460.0,0.00020117,2]
[378558626,1754913056648,-1181.48,0.00020117,2]
[378558628,1754913056657,-893.39,0.00020117,2]
[378558629,1754913056666,-160.24807366,0.00020117,2]
[378558631,1754913056676,-460.0,0.00020117,2]
[378558633,1754913056686,-460.0,0.00020117,2]
[378558634,1754913056696,-460.0,0.00020117,2]
[378558636,1754913056706,-625.54,0.00020117,2]
[378558638,1754913056715,-460.0,0.00020117,2]
[378558640,1754913056725,-460.0,0.00020117,2]
[378558641,1754913056734,-903.38,0.00020117,2]
[378558643,1754913056744,-810.16,0.00020117,2]
[378558645,1754913056755,-460.0,0.00020117,2]
[378558646,1754913056764,-460.0,0.00020117,2]
[378558648,1754913056774,-460.0,0.00020117,2]
[378558650,1754913056784,-460.0,0.00020117,2]
[378558652,1754913056793,-460.0,0.00020117,2]
[378558653,1754913056803,-460.0,0.00020117,2]
[378558655,1754913056813,-460.0,0.00020117,2]
[378558657,1754913056824,-460.0,0.00020117,2]
[378558658,1754913056831,-582.6,0.00020117,2]
[378558660,1754913056840,-460.0,0.00020117,2]
[378558662,1754913056849,-460.0,0.00020117,2]
[378558663,1754913056859,-537.42,0.00020117,2]
[378558665,1754913056868,-460.0,0.00020117,2]
[378558667,1754913056878,-460.0,0.00020118,2]
[378558668,1754913056887,-460.0,0.00020118,2]
[378558670,1754913056898,-460.0,0.00020118,2]
[378558672,1754913056908,-460.0,0.00020118,2]
[378558674,1754913056918,-460.0,0.00020118,2]
[378558675,1754913056927,-460.0,0.00020118,2]
[378558677,1754913056937,-460.0,0.00020118,2]
[378558679,1754913056946,-460.0,0.00020118,2]
[378558680,1754913056956,-460.0,0.00020118,2]
[378558682,1754913056966,-1446.05,0.00020118,2]
[378558684,1754913056976,-460.0,0.00020118,2]
[378558686,1754913056986,-460.0,0.00020118,2]
[378558687,1754913056996,-1282.92,0.00020118,2]
[378558689,1754913057005,-1818.25,0.00020118,2]
[378558691,1754913057015,-608.81,0.00020118,2]
[378558692,1754913057025,-460.0,0.00020118,2]
[378558694,1754913057035,-460.0,0.00020118,2]
[378558696,1754913057044,-460.0,0.00020118,2]
[378558698,1754913057054,-460.0,0.00020118,2]
[378558699,1754913057063,-460.0,0.00020118,2]
[378558701,1754913057073,-1141.48,0.00020118,2]
[378558703,1754913057082,-460.0,0.00020118,2]
[378558704,1754913057091,-1107.89,0.00020118,2]
[378558706,1754913057100,-954.93,0.00020118,2]
[378558708,1754913057109,-937.1,0.00020118,2]
[378558709,1754913057119,-460.0,0.00020118,2]
[378558711,1754913057129,-460.0,0.00020118,2]
[378558713,1754913057138,-460.0,0.00020118,2]
[378558714,1754913057148,-460.0,0.00020118,2]
[378558716,1754913057158,-920.08,0.00020118,2]
[378558718,1754913057167,-803.61,0.00020118,2]
[378558720,1754913057176,-460.0,0.00020118,2]
[378558721,1754913057186,-460.0,0.00020118,2]
[378558723,1754913057196,-460.0,0.00020118,2]
[378558725,1754913057205,-256.14068727,0.00020118,2]
[378558726,1754913057215,-503.23,0.00020118,2]
[378558728,1754913057225,-686.76,0.00020118,2]
[378558730,1754913057240,-464.85821319,0.00020118,2]
[378558732,1754913057249,-955.99,0.00020118,2]
[378558733,1754913057259,-460.0,0.00020118,2]
[378558735,1754913057268,-460.0,0.00020118,2]
[378558737,1754913057278,-1123.32,0.00020118,2]
[378558738,1754913057288,-932.73,0.00020118,2]
[378558740,1754913057297,-151.0,0.00020118,2]
[378558742,1754913057308,-477.28938811,0.00020118,2]
[378558744,1754913057318,-500.0,0.00020118,2]
[378558745,1754913057327,-1000.0,0.00020121,2]
[378558747,1754913057336,-472.1751104,0.00020121,2]
[378558749,1754913057346,-1000.0,0.00020121,2]
[378558751,1754913057356,-1000.0,0.00020121,2]
[378558752,1754913057365,-1000.0,0.00020121,2]
[378558754,1754913057375,-1000.0,0.00020121,2]
[378558756,1754913057384,-510.97540017,0.00020121,2]
[378558758,1754913057394,-1000.0,0.00020121,2]
[378558759,1754913057403,-1000.0,0.00020121,2]
[378558761,1754913057413,-1000.0,0.00020121,2]
[378558763,1754913057422,-1000.0,0.00020121,2]
[378558764,1754913057431,-198.31463455,0.00020121,2]
[378558766,1754913057440,-1000.0,0.00020121,2]
[378558768,1754913057450,-1000.0,0.00020121,2]
[378558770,1754913057459,-1000.41157304,0.00020121,2]
[378558771,1754913057468,-1000.0,0.00020121,2]
[378558773,1754913057477,-1000.0,0.00020121,2]
[378558775,1754913057486,-1000.0,0.00020121,2]
[378558777,1754913057496,-332.03455376,0.00020121,2]
[378558778,1754913057504,-500.0,0.00020142,2]
[378558781,1754913057521,-151.0,0.00020144,2]
[378558783,1754913057537,-460.0,0.00020144,2]
[378558785,1754913057551,-639.24,0.00020144,2]
[378558787,1754913057562,-8979.17,0.00020144,2]
[378558789,1754913057576,-2253.68,0.00020144,2]
[378558791,1754913057589,-460.0,0.00020145,2]
[378558793,1754913057604,-460.0,0.00020145,2]
[378558795,1754913057618,-464.3780288,0.00020145,2]
[378558797,1754913057632,-465.21823289,0.00020145,2]
[378558799,1754913057646,-460.0,0.00020145,2]
[378558802,1754913057660,-460.0,0.00020145,2]
[378558804,1754913057674,-460.0,0.00020145,2]
[378558806,1754913057687,-460.0,0.00020145,2]
[378558808,1754913057699,-460.0,0.00020145,2]
[378558810,1754913057712,-460.0,0.00020145,2]
[378558812,1754913057726,-460.0,0.00020145,2]
[378558814,1754913057739,-871.18,0.00020145,2]
[378558815,1754913057750,-180.69303314,0.00020145,2]
[378558912,1754913058887,-496.63243009,0.00019567,2]
[378558914,1754913058899,-460.0,0.00019568,2]
[378558916,1754913058910,-460.0,0.00019671,2]
[378558918,1754913058921,-201.54,0.00019842,2]
[378558921,1754913058933,-460.0,0.00019945,2]
[378558923,1754913058944,-279.30696686,0.00020145,2]
[378558925,1754913058954,-242.7761816,0.00020145,2]
[378558928,1754913058971,-217.2238184,0.00020145,2]
[378558930,1754913058982,-460.0,0.00020145,2]
[378558932,1754913058993,-460.0,0.00020145,2]
[378558934,1754913059004,-460.0,0.00020145,2]
[378558937,1754913059015,-782.54,0.00020145,2]
[378558939,1754913059026,-460.0,0.00020145,2]
[378558941,1754913059036,-460.0,0.00020145,2]
[378558943,1754913059045,-460.0,0.00020145,2]
[378558945,1754913059054,-460.0,0.00020145,2]
[378558947,1754913059064,-460.0,0.00020145,2]
[378558949,1754913059073,-791.07,0.00020145,2]
[378558951,1754913059083,-1559.71,0.00020145,2]
[378558952,1754913059092,-460.0,0.00020145,2]
[378558953,1754913059102,-460.0,0.00020145,2]
[378558954,1754913059111,-843.59,0.00020145,2]
[378558955,1754913059120,-460.0,0.00020145,2]
[378558956,1754913059129,-460.0,0.00020145,2]
[378558957,1754913059138,-516.96,0.00020145,2]
[378558958,1754913059147,-460.0,0.00020145,2]
[378558959,1754913059156,-460.0,0.00020145,2]
[378558960,1754913059165,-460.0,0.00020145,2]
[378558961,1754913059175,-460.0,0.00020145,2]
[378558962,1754913059184,-460.0,0.00020145,2]
[378558963,1754913059194,-1862.31,0.00020145,2]
[378558964,1754913059204,-460.0,0.00020145,2]
[378558965,1754913059213,-460.0,0.00020145,2]
[378558966,1754913059221,-460.0,0.00020145,2]
[378558967,1754913059231,-561.42,0.00020145,2]
[378558968,1754913059243,-460.0,0.00020145,2]
[378558969,1754913059253,-460.0,0.00020145,2]
[378558970,1754913059262,-810.36,0.00020145,2]
[378558971,1754913059272,-460.0,0.00020145,2]
[378558972,1754913059282,-591.9,0.00020145,2]
[378558973,1754913059291,-460.0,0.00020145,2]
[378558974,1754913059300,-580.12,0.00020145,2]
[378558975,1754913059309,-699.15,0.00020145,2]
[378558976,1754913059318,-765.54,0.00020145,2]
[378558977,1754913059328,-460.0,0.00020145,2]
[378558978,1754913059337,-460.0,0.00020145,2]
[378558979,1754913059346,-259.69816,0.00020145,2]
[378558980,1754913059356,-259.69816,0.00020145,2]
[378558981,1754913059365,-460.0,0.00020145,2]
[378558982,1754913059374,-3490.1,0.00020153,2]
[378558983,1754913059383,-460.0,0.00020154,2]
[378558984,1754913059392,-460.0,0.00020154,2]
[378558985,1754913059402,-460.0,0.00020154,2]
[378558986,1754913059411,-493.4,0.00020154,2]
[378558987,1754913059421,-460.0,0.00020154,2]
[378558988,1754913059432,-460.0,0.00020154,2]
[378558989,1754913059441,-460.0,0.00020154,2]
[378558990,1754913059450,-460.0,0.00020154,2]
[378558991,1754913059459,-456.59073452,0.00020154,2]
[378558992,1754913059469,-460.0,0.00020154,2]
[378558993,1754913059478,-460.0,0.00020154,2]
[378558994,1754913059487,-460.0,0.00020154,2]
[378558995,1754913059497,-460.0,0.00020154,2]
[378558996,1754913059506,-460.0,0.00020154,2]
[378558997,1754913059515,-460.0,0.00020154,2]
[378558998,1754913059524,-460.0,0.00020154,2]
[378558999,1754913059533,-426.86728387,0.00020154,2]
[378559000,1754913059542,-460.0,0.00020154,2]
[378559001,1754913059552,-460.0,0.00020154,2]
[378559002,1754913059561,-484.88,0.00020154,2]
[378559003,1754913059570,-563.02,0.00020154,2]
[378559004,1754913059581,-460.0,0.00020154,2]
[378559005,1754913059590,-460.0,0.00020154,2]
[378559006,1754913059599,-460.0,0.00020154,2]
[378559007,1754913059609,-460.0,0.00020154,2]
[378559008,1754913059618,-460.0,0.00020154,2]
[378559009,1754913059627,-460.0,0.00020154,2]
[378559010,1754913059635,-460.0,0.00020154,2]
[378559011,1754913059644,-611.85,0.00020154,2]